bitfinex/quotes_ETHUSD_20260302
["timestamp","ask_amount","ask_price","bid_price","bid_amount"]
[1772438484014,0.00153886,1939.0,1938.4,0.46314075]
[1772438485534,2.60998552,1938.5,1938.1,0.0011]
[1772438485856,1.28985656,1938.2,1937.8,0.0011]
[1772438486317,3.41817671,1938.2,1937.8,0.0011]
[1772438486523,1.28985656,1938.2,1937.8,0.0011]
[1772438486923,5.6395223,1938.8,1937.8,0.46424075]
[1772438487155,1.2895239,1938.7,1937.8,0.46424075]
[1772438487456,2.12832015,1938.6,1937.8,0.46424075]
[1772438487635,2.60998552,1938.6,1937.8,0.0011]
[1772438487823,1.28965695,1938.5,1937.8,0.0011]
[1772438488025,1.2895239,1938.7,1937.8,0.46424075]
[1772438488467,2.12832015,1938.1,1937.3,1.75356435]
[1772438488628,2.12832015,1938.2,1937.4,0.46314075]
[1772438488831,2.12832015,1938.6,1937.5,0.46314075]
[1772438489067,0.48166537,1937.5,1937.0,0.00153886]
[1772438489260,2.12832015,1937.6,1937.0,0.00153886]
[1772438489826,2.60998552,1937.6,1937.0,0.00153886]
[1772438490027,1.29032258,1937.5,1937.0,0.00153886]
[1772438492559,1.5245403,1937.3,1937.0,0.00153886]
[1772438492860,1.5245403,1937.3,1936.5,1.29095485]
[1772438493654,1.5245403,1937.3,1936.5,1.7540956]
[1772438493834,5.16026086,1937.9,1937.0,0.46314075]
[1772438494174,5.16026086,1937.9,1937.1,1.29058902]
[1772438494525,1.29005624,1937.9,1937.1,1.29058902]
[1772438494729,1.29005624,1937.9,1937.1,1.75372977]
[1772438496347,1.29005624,1937.9,1937.2,0.46314075]
[1772438498230,1.5245403,1937.6,1936.9,0.46314075]
[1772438498437,2.00620567,1937.6,1936.6,1.75512542]
[1772438498784,0.48166537,1937.5,1936.6,0.46424075]
[1772438498932,2.00620567,1937.4,1936.6,0.46424075]
[1772438499452,0.48166537,1937.4,1936.6,1.75515805]
[1772438500163,1.5245403,1937.3,1936.6,0.46424075]
[1772438500533,1.2905224,1937.2,1936.6,1.75515519]
[1772438500740,1.29049922,1937.3,1936.6,1.75515519]
[1772438502346,1.29049922,1937.3,1936.6,1.29091444]
[1772438502661,1.29049922,1937.3,1936.5,0.0011]
[1772438503065,1.29049922,1937.3,1936.5,0.46424075]
[1772438503272,1.77210486,1937.4,1936.5,0.46424075]
[1772438503481,3.36729849,1937.6,1936.8,0.46314075]
[1772438503683,3.84472161,1937.9,1936.8,0.46314075]
[1772438504736,3.84472161,1937.9,1936.9,1.75386303]
[1772438504941,1.77172161,1937.9,1937.1,1.5245403]
[1772438505178,1.5245403,1937.3,1936.5,0.0011]
[1772438505347,0.48166537,1937.8,1936.7,0.46314075]
[1772438505348,0.24249285,1937.1,1936.7,0.46314075]
[1772438505670,2.55466537,1937.7,1936.8,1.5245403]
[1772438506855,1.29025598,1937.6,1936.9,1.29072228]
[1772438507143,1.29025598,1937.6,1936.8,6.68765156]
[1772438507144,1.77192135,1937.6,1936.7,1.290813]
[1772438507982,1.98286584,1937.5,1936.6,1.7551327]
[1772438508284,0.001,1937.8,1937.3,0.48478394]
[1772438508451,0.001,1937.8,1937.4,1.5245403]
[1772438508865,0.001,1937.8,1937.5,1.29032258]
[1772438510270,0.001,1937.8,1937.6,1.5245403]
[1772438510773,0.001,1937.8,1937.5,1.29032258]
[1772438510986,0.001,1937.8,1936.6,0.0011]
[1772438510987,0.45832554,1937.5,1936.6,0.0011]
[1772438511169,1.5245403,1936.8,1936.5,0.0011]
[1772438512186,1.5245403,1937.0,1936.5,0.0011]
[1772438512357,1.5245403,1937.2,1936.5,0.0011]
[1772438512682,1.5245403,1937.0,1936.5,0.0011]
[1772438513681,1.29072228,1936.9,1936.5,0.0011]
[1772438514349,2.81524259,1937.0,1936.5,0.0011]
[1772438514680,1.29070229,1937.0,1936.5,0.0011]
[1772438515060,2.81511053,1937.2,1936.5,0.0011]
[1772438515893,4.88911053,1937.2,1936.5,0.0011]
[1772438517967,2.075,1937.1,1936.5,0.0011]
[1772438518484,2.075,1937.1,1936.6,0.0011]
[1772438518686,2.81511053,1937.2,1936.6,0.0011]
[1772438518891,4.89011053,1937.2,1936.6,0.0011]
[1772438519069,2.81511053,1937.2,1936.6,0.0011]
[1772438519270,4.88911053,1937.2,1936.6,0.0011]
[1772438520400,5.16208961,1937.3,1936.6,0.0011]
[1772438520401,3.36449062,1937.3,1936.6,0.0011]
[1772438520692,1.5245403,1937.2,1936.6,0.0011]
[1772438520898,1.5245403,1937.0,1936.6,0.0011]
[1772438521069,5.03194644,1936.8,1936.3,0.0011]
[1772438521267,1.5245403,1936.6,1935.9,1.29134738]
[1772438521599,1.5245403,1936.4,1935.5,0.48478394]
[1772438521897,1.29118892,1936.2,1935.4,1.29172264]
[1772438522075,1.29118892,1936.2,1935.5,0.48478394]
[1772438522403,1.29118892,1936.2,1935.4,1.29172264]
[1772438522404,1.5245403,1936.7,1935.7,0.48478394]
[1772438522796,1.5245403,1936.7,1935.6,1.5245403]
[1772438522797,1.29075709,1936.9,1936.0,0.48478394]
[1772438522966,2.074,1936.8,1936.1,0.00153886]
[1772438523298,3.5985403,1936.8,1936.1,0.4863228]
[1772438523688,3.5985403,1936.8,1936.1,0.00153886]
[1772438523887,4.88939345,1936.8,1936.1,0.00153886]
[1772438524194,3.3667998,1936.8,1936.1,0.00153886]
[1772438524396,2.076,1936.8,1936.1,0.00153886]
[1772438524594,3.36679722,1936.8,1936.1,0.00153886]
[1772438525192,4.89133752,1936.8,1936.1,0.00153886]
[1772438525701,0.4598644,1937.0,1936.1,0.00153886]
[1772438525892,2.077,1936.7,1936.1,0.00153886]
[1772438526410,0.00153886,1937.0,1936.5,0.48478394]
[1772438526701,1.29132344,1937.5,1936.6,0.48478394]
[1772438526870,1.5245403,1937.2,1936.6,0.00153886]
[1772438527073,2.079,1937.1,1936.6,0.00153886]
[1772438527474,1.5245403,1937.2,1936.6,0.00153886]
[1772438527475,2.078,1937.2,1936.6,0.00153886]
[1772438528190,1.5245403,1937.4,1936.7,0.48478394]
[1772438528191,2.078,1937.4,1936.7,0.48478394]
[1772438528975,1.2913285,1937.5,1936.8,0.00153886]
[1772438529686,0.001,1937.5,1936.8,0.00153886]
[1772438529891,2.079,1937.5,1936.8,0.00153886]
[1772438530093,3.36932639,1937.5,1936.8,1.29232779]
[1772438530276,0.001,1937.4,1936.8,1.29232779]
[1772438530875,0.001,1937.4,1936.8,1.77711173]
[1772438531078,0.001,1937.8,1937.2,0.48478394]
[1772438531277,0.45832554,1937.2,1936.2,0.48478394]
[1772438531503,0.45832554,1937.2,1936.3,0.4863228]
[1772438531504,1.5245403,1937.0,1936.3,0.4863228]
[1772438531800,2.08,1937.1,1936.3,0.4863228]
[1772438532509,1.29050087,1937.3,1936.5,1.5245403]
[1772438532708,1.29050087,1937.3,1936.4,1.7758395]
[1772438532917,1.29050087,1937.3,1936.5,0.00153886]
[1772438533799,1.5245403,1937.2,1936.5,0.00153886]
[1772438534513,1.29058902,1937.1,1936.5,0.00153886]
[1772438534815,1.29058902,1937.1,1936.1,2.64455354]
[1772438534816,1.29058902,1937.1,1936.3,0.48478394]
[1772438534981,2.076,1937.0,1936.4,0.48478394]
[1772438535181,2.076,1937.0,1936.4,0.4863228]
[1772438536418,2.076,1937.0,1936.4,0.48478394]
[1772438536616,1.29072228,1936.9,1936.5,0.00153886]
[1772438536779,1.5245403,1936.8,1936.3,0.00153886]
[1772438536975,1.5245403,1936.8,1936.2,0.00153886]
[1772438538221,1.5245403,1936.6,1936.2,0.00153886]
[1772438538383,1.5245403,1936.6,1935.7,5.1671838]
[1772438538384,0.47039638,1935.9,1934.2,3.095]
[1772438538581,1.5245403,1934.8,1934.2,0.00483886]
[1772438538783,1.29189882,1935.2,1934.2,0.45564576]
[1772438538981,2.079,1935.2,1934.2,0.45564576]
[1772438539181,1.29158917,1935.6,1934.2,0.45564576]
[1772438539381,2.079,1935.5,1934.2,0.45564576]
[1772438539581,2.079,1935.4,1934.2,0.45564576]
[1772438539990,2.079,1935.4,1934.3,1.9753472]
[1772438540185,2.079,1935.4,1934.4,0.4508069]
[1772438540698,3.37076481,1935.4,1934.5,3.27250965]
[1772438540890,3.37076481,1935.4,1934.6,0.4508069]
[1772438541210,5.16638542,1935.6,1934.6,0.4508069]
[1772438541415,2.078,1935.5,1934.7,0.45564576]
[1772438541609,2.078,1935.5,1934.7,0.4508069]
[1772438542286,2.078,1935.5,1934.8,0.00483886]
[1772438542483,1.5245403,1935.3,1934.8,0.00593886]
[1772438542686,2.81639191,1935.3,1934.8,0.00593886]
[1772438542891,1.5245403,1935.1,1934.8,0.00593886]
[1772438543117,1.29185161,1935.3,1934.8,0.00593886]
[1772438543279,1.5245403,1935.2,1934.7,0.0011]
[1772438543480,1.5245403,1935.0,1934.7,0.0011]
[1772438543714,3.0490806,1935.2,1934.7,0.0011]
[1772438543715,2.078,1934.9,1934.7,0.0011]
[1772438544414,2.078,1934.8,1934.5,0.0011]
[1772438544727,2.078,1934.7,1934.0,0.45234576]
[1772438544928,2.078,1934.7,1934.0,0.00153886]
[1772438545327,1.5245403,1934.5,1934.0,0.00153886]
[1772438545898,2.54839638,1934.7,1934.0,0.00153886]
[1772438546125,1.5245403,1934.5,1934.0,0.00153886]
[1772438546297,2.078,1934.7,1934.0,3.26954106]
[1772438546632,2.078,1934.7,1934.0,1.74500076]
[1772438546820,3.37025368,1934.7,1934.0,1.74500076]
[1772438547527,2.078,1934.6,1934.0,1.74500076]
[1772438548498,1.5245403,1934.7,1934.0,1.29415661]
[1772438548699,2.077,1934.6,1934.0,1.74496351]
[1772438549504,2.077,1934.6,1934.1,0.4508069]
[1772438549904,2.077,1934.6,1934.0,1.29415661]
[1772438550117,2.077,1934.6,1934.0,1.29414992]
[1772438550429,2.076,1934.8,1934.1,0.4508069]
[1772438550935,5.63835503,1935.1,1934.3,0.4508069]
[1772438550936,2.075,1935.1,1934.3,0.4508069]
[1772438551239,0.00153886,1936.0,1935.1,0.4508069]
[1772438551402,7.98362463,1935.9,1935.3,0.4508069]
[1772438551602,7.98516349,1936.0,1935.3,0.4508069]
[1772438552308,2.075,1936.6,1935.7,0.4508069]
[1772438553037,2.075,1936.6,1935.8,1.74226262]
[1772438553233,0.00153886,1937.0,1935.9,0.4508069]
[1772438553441,3.36620631,1937.0,1935.9,0.4508069]
[1772438553649,2.24189537,1936.5,1935.7,1.74228954]
[1772438553944,1.29189413,1936.7,1935.5,0.4508069]
[1772438554831,2.24189537,1936.4,1935.5,0.4508069]
[1772438555149,1.29118892,1936.2,1935.2,5.16732861]
[1772438555615,1.29118892,1936.2,1935.2,5.61813551]
[1772438555941,1.29118892,1936.2,1935.2,1.29185613]
[1772438556318,2.71229175,1936.1,1935.0,0.45344576]
[1772438556577,0.47039638,1936.0,1935.0,1.2945917]
[1772438556750,2.24189537,1935.8,1935.0,0.00263886]
[1772438556928,2.072,1935.7,1935.0,0.00263886]
[1772438557245,1.29158917,1935.6,1935.0,0.00263886]
[1772438559251,2.072,1935.7,1935.0,0.00263886]
[1772438559748,2.24189537,1936.2,1935.0,0.45344576]
[1772438559920,5.23057718,1936.1,1935.0,0.45344576]
[1772438560855,2.072,1936.0,1935.0,0.45344576]
[1772438561433,1.29138901,1935.9,1935.1,1.29192289]
[1772438561848,3.36337091,1936.0,1935.2,0.4508069]
[1772438562226,3.36337091,1936.0,1935.1,1.29192289]
[1772438563039,3.36332526,1936.0,1935.2,0.4508069]
[1772438563238,2.072,1936.0,1935.2,0.4508069]
[1772438563438,2.24189537,1936.5,1935.2,0.4508069]
[1772438563439,2.071,1936.3,1935.4,0.4508069]
[1772438565526,1.29118892,1936.2,1935.5,1.2916559]
[1772438566061,2.071,1936.3,1935.5,1.7424628]
[1772438566361,2.24189537,1935.9,1934.9,0.0011]
[1772438566540,2.71229175,1936.2,1935.0,1.74539122]
[1772438566952,2.71229175,1936.2,1935.5,0.0011]
[1772438567532,1.29125561,1936.1,1935.5,0.0011]
[1772438568834,2.24189537,1935.9,1935.4,0.0011]
[1772438569041,2.07,1935.8,1935.4,0.0011]
[1772438569963,1.29152244,1935.7,1935.4,0.0011]
[1772438571360,3.36150342,1935.8,1935.4,0.0011]
[1772438572232,0.001,1936.5,1935.4,0.48155928]
[1772438572549,1.29199025,1936.5,1935.6,0.48045928]
[1772438572749,0.001,1936.5,1936.1,2.61601399]
[1772438572940,0.001,1936.5,1936.1,0.48045928]
[1772438573431,0.00153886,1937.0,1936.2,0.48045928]
[1772438573749,1.29075442,1936.9,1936.2,0.48045928]
[1772438573949,0.00153886,1937.0,1936.3,1.29112224]
[1772438574462,0.00153886,1937.0,1936.2,1.77160015]
[1772438575062,2.13709357,1937.0,1936.2,1.77160015]
[1772438575458,0.00153886,1937.0,1936.2,1.77160015]
[1772438577767,0.00153886,1937.0,1936.3,0.48045928]
[1772438577949,0.00153886,1937.0,1936.5,0.48045928]
[1772438578150,0.00153886,1937.0,1936.6,1.29092223]
[1772438578476,0.00153886,1937.0,1936.7,0.48045928]
[1772438580363,0.001,1936.9,1936.7,1.77130265]
[1772438581241,1.29117099,1937.8,1936.9,0.48045928]
[1772438581789,0.001,1937.8,1936.9,0.48045928]
[1772438581959,0.001,1937.8,1937.1,0.48045928]
[1772438582142,0.001,1937.8,1937.2,1.2905224]
[1772438582341,0.001,1937.8,1937.3,0.48045928]
[1772438582539,0.00153886,1938.0,1937.7,2.61601399]
[1772438582758,0.001,1938.7,1937.8,0.48045928]
[1772438582959,1.29053096,1938.7,1938.0,0.48045928]
[1772438583160,3.42608567,1938.7,1937.7,0.48045928]
[1772438583679,0.001,1938.7,1937.9,0.48045928]
[1772438583978,1.29052456,1938.7,1937.9,0.48045928]
[1772438584550,0.001,1938.7,1938.0,1.77044896]
[1772438584852,0.001,1938.7,1938.1,0.48045928]
[1772438586543,0.001,1938.7,1938.3,0.48045928]
[1772438586761,0.001,1938.7,1938.2,1.28985656]
[1772438586762,0.00153886,1939.0,1938.5,0.48045928]
[1772438587476,0.00153886,1939.0,1938.7,0.48045928]
[1772438588265,0.00153886,1939.0,1938.8,0.48045928]
[1772438588869,1.29020827,1940.0,1939.0,0.48045928]
[1772438589174,1.29020249,1940.0,1939.3,0.48045928]
[1772438589379,2.053,1940.7,1939.6,2.13555471]
[1772438589593,3.34121759,1940.7,1939.7,0.48045928]
[1772438589891,2.13555471,1940.4,1939.5,1.435]
[1772438590191,2.13555471,1940.6,1939.5,1.91545928]
[1772438590427,2.13555471,1940.4,1939.5,0.48045928]
[1772438590560,2.13555471,1940.0,1939.2,0.48045928]
[1772438590761,1.2888591,1939.7,1939.0,0.00153886]
[1772438591091,2.13555471,1939.6,1939.0,0.00153886]
[1772438591695,1.2888591,1939.7,1939.0,0.00153886]
[1772438592602,2.13555471,1939.6,1939.0,0.00153886]
[1772438592767,1.288992,1939.5,1939.0,0.00153886]
[1772438592968,1.28872622,1939.9,1939.0,0.00153886]
[1772438593274,1.28870359,1940.0,1939.1,0.48045928]
[1772438593622,1.28870359,1940.0,1939.0,2.13709357]
[1772438593623,0.001,1940.1,1939.5,0.48045928]
[1772438594068,1.28960138,1940.1,1939.5,0.48045928]
[1772438594290,1.28959622,1940.1,1939.5,0.48045928]
[1772438594489,0.001,1940.1,1939.5,0.48045928]
[1772438595013,5.15318464,1940.6,1939.7,0.48005555]
[1772438595391,1.28826136,1940.6,1939.7,2.61561026]
[1772438595590,3.33824035,1940.7,1939.8,0.48005555]
[1772438595795,2.13555471,1940.6,1939.6,1.28892555]
[1772438596293,3.33824035,1940.7,1939.6,1.28892555]
[1772438596688,3.33824035,1940.7,1939.6,1.7689811]
[1772438596888,3.80394813,1940.7,1939.6,1.76892544]
[1772438597309,3.80394813,1940.7,1939.6,0.48005555]
[1772438597516,2.13555471,1940.3,1939.3,1.28909206]
[1772438597819,2.13555471,1940.1,1939.3,1.28909206]
[1772438598024,2.62427117,1940.4,1939.3,1.28909206]
[1772438598900,1.28846054,1940.3,1939.3,1.28909206]
[1772438599103,1.28846054,1940.3,1939.3,1.76574108]
[1772438599306,1.28846054,1940.3,1939.3,0.47664902]
[1772438599620,3.33824035,1940.7,1939.7,0.47664902]
[1772438599621,1.28819498,1940.7,1939.7,0.47664902]
[1772438600322,1.28819498,1940.7,1939.8,0.47664902]
[1772438601320,1.28819498,1940.7,1939.9,1.76537524]
[1772438601522,3.33608964,1940.9,1940.2,0.47664902]
[1772438601722,2.048,1940.9,1940.2,0.47664902]
[1772438602024,0.00253886,1941.0,1940.3,2.13555471]
[1772438602216,0.00253886,1941.0,1940.3,2.61220373]
[1772438602596,0.00253886,1941.0,1940.3,0.47664902]
[1772438603321,0.00253886,1941.0,1940.4,1.28839414]
[1772438603626,0.49125532,1941.0,1939.8,1.76544167]
[1772438604720,0.48871646,1940.8,1939.6,1.28892555]
[1772438605502,1.28819498,1940.7,1939.6,1.28892555]
[1772438606615,0.48871646,1940.6,1939.4,1.2901252]
[1772438606950,0.48871646,1939.9,1939.3,0.0011]
[1772438607145,0.48871646,1940.3,1939.3,0.0011]
[1772438607441,1.28852695,1940.2,1939.3,0.0011]
[1772438607737,0.48871646,1940.1,1939.3,0.0011]
[1772438609022,0.48871646,1939.8,1939.3,0.0011]
[1772438609243,2.53171646,1939.7,1939.3,0.0011]
[1772438609758,1.28892555,1939.6,1939.1,0.0011]
[1772438610948,7.68741866,1939.7,1939.1,0.0011]
[1772438610949,3.33189858,1939.7,1939.1,0.0011]
[1772438612728,2.043,1939.7,1939.1,0.0011]
[1772438612968,3.33187102,1939.7,1939.1,0.0011]
[1772438613453,3.33187102,1939.7,1938.2,3.95981844]
[1772438613454,0.48871646,1939.4,1938.2,3.95981844]
[1772438613660,1.28912494,1939.3,1938.2,3.95981844]
[1772438613831,2.53171646,1939.2,1938.2,3.95981844]
[1772438615426,0.48871646,1938.9,1938.1,0.0011]
[1772438615625,1.28945739,1938.8,1938.1,0.0011]
[1772438617341,1.28930663,1939.1,1938.1,0.47774902]
[1772438617668,1.28899941,1939.5,1938.5,1.59770815]
[1772438617967,1.28899941,1939.5,1938.5,2.07435717]
[1772438618170,1.28899941,1939.5,1939.2,0.0011]
[1772438618572,1.28995688,1939.6,1939.2,0.0011]
[1772438618741,0.001,1939.6,1939.2,0.0011]
[1772438622052,0.00153886,1940.0,1939.2,0.47774902]
[1772438622367,3.81708447,1940.5,1939.5,0.47664902]
[1772438622558,3.3283452,1940.5,1939.5,0.47664902]
[1772438623382,0.48871646,1940.2,1939.2,0.0011]
[1772438623749,1.28859337,1940.1,1939.2,0.0011]
[1772438624076,1.59770815,1940.0,1939.2,0.0011]
[1772438624505,1.77730983,1940.1,1939.2,0.0011]
[1772438624870,1.5200148,1940.0,1939.2,0.0011]
[1772438625060,1.5200148,1939.8,1939.2,0.0011]
[1772438625487,1.5200148,1939.6,1939.2,0.0011]
[1772438625800,1.288992,1939.5,1939.2,0.0011]
[1772438626169,1.28897405,1939.6,1939.2,0.0011]
[1772438628199,1.5200148,1939.4,1939.0,0.00263886]
[1772438628499,4.02342085,1939.4,1939.0,0.00263886]
[1772438628872,1.5200148,1939.2,1938.4,1.2896811]
[1772438629293,4.02342085,1939.4,1938.4,1.2896811]
[1772438629491,4.02342085,1939.4,1938.3,5.64881092]
[1772438629492,4.02342085,1939.4,1938.3,1.779505]
[1772438629694,1.5200148,1938.8,1938.1,0.0011]
[1772438630700,2.80952114,1938.8,1938.1,0.0011]
[1772438631083,1.28938019,1939.0,1938.1,0.0011]
[1772438631281,1.28938019,1939.0,1938.9,0.0011]
[1772438631471,1.28938019,1939.0,1938.1,0.0011]
[1772438631889,2.80939499,1939.0,1938.1,0.0011]
[1772438632118,1.5200148,1938.8,1938.1,0.0011]
[1772438632519,3.32443679,1938.9,1938.1,0.0011]
[1772438633083,2.035,1938.9,1938.1,2.01087215]
[1772438633288,1.28937613,1939.0,1938.1,2.01087215]
[1772438633489,1.28929849,1939.1,1938.2,1.5200148]
[1772438634022,2.034,1939.3,1938.4,1.5200148]
[1772438634202,3.32318411,1939.3,1938.4,2.00977215]
[1772438634519,2.034,1939.3,1938.5,1.28965695]
[1772438634716,1.28904107,1939.5,1938.6,1.5200148]
[1772438635292,0.001,1939.6,1938.7,0.48975735]
[1772438635493,0.001,1939.6,1938.8,2.00977215]
[1772438636496,0.001,1939.6,1938.9,1.28939089]
[1772438636822,1.5200148,1939.3,1938.6,1.28959042]
[1772438637320,1.5200148,1939.3,1938.3,5.15913509]
[1772438638323,1.5200148,1939.1,1938.3,1.28979002]
[1772438639021,1.28932439,1939.0,1938.3,1.28979002]
[1772438639225,1.28930945,1939.1,1938.3,1.28979002]
[1772438640334,1.98742085,1938.7,1938.1,0.0011]
[1772438640496,2.49640605,1939.0,1938.1,1.2910181]
[1772438640830,2.029,1939.0,1938.1,1.2910181]
[1772438641038,1.5200148,1938.8,1938.1,0.0011]
[1772438641603,3.31833063,1939.0,1938.1,2.01087215]
[1772438642020,3.31833063,1939.0,1938.1,0.0011]
[1772438642325,3.78573668,1939.0,1938.1,0.0011]
[1772438642531,1.75673668,1939.0,1938.1,1.5211148]
[1772438642732,1.28933063,1939.0,1938.1,1.5211148]
[1772438642938,5.15708077,1939.1,1938.4,0.0011]
[1772438643624,2.03,1939.3,1938.5,1.5200148]
[1772438644363,1.5200148,1939.2,1938.4,0.0011]
[1772438644505,1.5200148,1938.8,1938.4,0.0011]
[1772438644919,1.98742085,1939.0,1938.4,0.0011]
[1772438645330,1.28939089,1938.9,1938.4,0.0011]
[1772438646125,1.5200148,1938.8,1938.4,0.0011]
[1772438646438,1.5200148,1938.6,1938.1,0.0011]
[1772438646635,1.98742085,1938.8,1938.1,1.29100572]
[1772438646861,1.98742085,1938.8,1938.1,0.0011]
[1772438647461,1.2895239,1938.7,1938.1,0.0011]
[1772438647651,1.75692995,1938.7,1938.1,0.0011]
[1772438648038,1.2895239,1938.7,1938.1,0.0011]
[1772438648361,5.15765264,1938.9,1938.1,0.0011]
[1772438648562,1.5200148,1938.8,1938.1,0.0011]
[1772438648969,1.5200148,1938.6,1938.1,0.0011]
[1772438649534,1.28965695,1938.5,1938.1,0.0011]
[1772438650367,1.98742085,1938.4,1937.8,0.0011]
[1772438650758,1.28960846,1938.6,1937.8,0.0011]
[1772438650957,1.75701451,1938.6,1937.8,0.0011]
[1772438651160,1.98742085,1938.5,1937.8,0.0011]
[1772438651675,1.28972348,1938.4,1937.8,0.0011]
[1772438651971,5.15826237,1938.7,1937.8,0.0011]
[1772438652173,1.28946057,1938.8,1937.8,2.01087215]
[1772438652944,1.28946057,1938.8,1937.9,0.48975735]
[1772438653350,1.5200148,1938.7,1937.8,0.0011]
[1772438653550,1.28959042,1938.6,1937.8,1.29122281]
[1772438654395,1.98742085,1938.5,1937.8,0.0011]
[1772438654680,1.5200148,1938.1,1937.2,1.29047333]
[1772438655460,1.5200148,1938.1,1937.9,0.0011]
[1772438655657,1.28998968,1938.0,1937.1,5.16219591]
[1772438655862,0.49263644,1938.4,1937.4,2.01682887]
[1772438656180,1.28983195,1938.3,1937.8,0.0011]
[1772438656883,5.65158423,1938.4,1937.8,0.0011]
[1772438656884,0.49263644,1938.4,1937.8,0.0011]
[1772438657086,1.78236908,1938.4,1937.8,0.0011]
[1772438657470,3.31464108,1938.6,1937.8,1.5211148]
[1772438657650,2.80973828,1938.4,1937.8,0.0011]
[1772438658484,3.27968511,1938.4,1937.8,0.0011]
[1772438659782,1.29005624,1937.9,1937.6,0.0011]
[1772438660281,1.29005624,1937.9,1937.0,1.29219451]
[1772438660661,1.98996163,1937.8,1937.0,0.00153886]
[1772438661353,1.5200148,1937.6,1937.0,0.00153886]
[1772438661553,4.01396163,1937.6,1937.0,0.00153886]
[1772438661776,1.98996163,1937.4,1937.0,0.00153886]
[1772438662381,1.29032258,1937.5,1937.0,0.00153886]
[1772438662586,1.98996163,1937.4,1937.0,0.00153886]
[1772438663310,10.22531992,1937.6,1937.0,0.00153886]
[1772438663311,2.024,1937.6,1937.0,0.00153886]
[1772438663895,3.31426295,1937.6,1937.0,0.00153886]
[1772438664083,2.024,1937.6,1937.0,0.00153886]
[1772438664470,3.31425932,1937.6,1937.0,0.00153886]
[1772438664670,3.31426584,1937.6,1937.0,0.00153886]
[1772438665300,2.024,1937.6,1937.0,0.00153886]
[1772438665497,3.3150316,1938.0,1937.1,1.97322654]
[1772438666001,3.3150316,1938.0,1937.2,1.2905224]
[1772438666367,3.31499453,1938.0,1937.2,1.2905224]
[1772438666568,4.83500933,1938.0,1937.2,1.2905224]
[1772438667368,3.3149961,1938.0,1937.2,1.2905224]
[1772438667769,3.3149961,1938.0,1937.2,1.2916224]
[1772438670602,3.31499227,1938.0,1937.2,1.2916224]
[1772438671299,1.5200148,1937.8,1937.2,0.0011]
[1772438672074,1.29018939,1937.7,1937.2,0.0011]
[1772438674505,1.29005624,1937.9,1937.2,0.0011]
[1772438674709,3.31503847,1938.0,1937.2,0.45431174]
[1772438674882,4.83505327,1938.0,1937.2,0.45431174]
[1772438675286,3.31503847,1938.0,1937.2,0.45431174]
[1772438675479,3.7849853,1938.0,1937.2,0.0011]
[1772438675702,5.3050001,1938.0,1937.2,0.0011]
[1772438676381,0.46994683,1938.0,1937.2,0.0011]
[1772438676581,5.15955456,1938.2,1937.3,1.29045578]
[1772438676990,1.76080339,1938.3,1937.3,1.29045578]
[1772438676991,0.001,1938.3,1937.6,0.45321174]
[1772438677389,1.29080526,1938.3,1937.6,0.45321174]
[1772438678510,1.29079355,1938.3,1937.7,1.29018939]
[1772438678818,1.29079355,1938.3,1937.6,1.74341643]
[1772438680019,1.29079355,1938.3,1937.6,1.29020469]
[1772438680394,0.46994683,1938.2,1937.2,1.29157197]
[1772438680593,1.28992312,1938.1,1937.2,1.74478371]
[1772438680814,1.28992312,1938.1,1937.3,0.0011]
[1772438681120,1.28992312,1938.1,1937.3,0.45431174]
[1772438682523,0.001,1938.2,1937.4,0.45321174]
[1772438682823,0.001,1938.2,1937.6,0.45321174]
[1772438684326,0.001,1938.2,1937.5,1.74353432]
[1772438686923,1.29085656,1938.2,1937.5,1.74353432]
[1772438687626,1.75428057,1938.2,1937.5,1.29032258]
[1772438687924,2.59544864,1937.7,1937.3,0.0011]
[1772438688301,0.46342401,1938.0,1937.3,0.0011]
[1772438688501,0.46342401,1937.7,1937.3,0.0011]
[1772438688698,0.46342401,1937.5,1937.0,0.00263886]
[1772438688921,1.75381319,1937.4,1937.0,0.00263886]
[1772438689398,0.46342401,1937.3,1937.0,0.00263886]
[1772438690416,0.46342401,1937.1,1936.3,1.2910835]
[1772438690928,1.29065565,1937.0,1936.3,0.00263886]
[1772438691633,1.75407966,1937.0,1936.3,0.00263886]
[1772438691842,2.13202463,1936.4,1936.0,0.00153886]
[1772438692045,4.26404926,1936.8,1936.0,0.00153886]
[1772438692046,2.13202463,1936.6,1936.0,0.00263886]
[1772438692549,2.13202463,1936.4,1936.0,0.00263886]
[1772438693242,1.29112224,1936.3,1936.0,0.00263886]
[1772438693645,1.29112224,1936.3,1936.1,0.0011]
[1772438693942,1.29112224,1936.3,1935.6,0.0011]
[1772438694147,1.75454625,1936.3,1936.0,0.0011]
[1772438695142,2.59544864,1936.2,1935.8,0.0011]
[1772438695349,0.46342401,1936.1,1935.8,0.0011]
[1772438695657,0.46342401,1936.1,1935.6,0.0011]
[1772438697363,0.46342401,1935.8,1935.4,0.0011]
[1772438697532,2.59544864,1935.7,1935.4,0.0011]
[1772438697845,0.46342401,1935.6,1935.2,0.0011]
[1772438698248,2.01,1935.8,1935.2,1.29292483]
[1772438698620,2.01,1935.8,1935.2,1.29295207]
[1772438699255,1.29123473,1936.2,1935.2,0.454999]
[1772438699468,1.75465874,1936.2,1935.2,0.454999]
[1772438699846,3.88668337,1936.2,1935.2,0.454999]
[1772438700040,0.46342401,1936.1,1935.2,0.454999]
[1772438700375,0.46342401,1936.4,1935.5,0.453899]
[1772438700545,0.46342401,1936.2,1935.2,1.839999]
[1772438701071,0.46342401,1936.2,1935.2,0.454999]
[1772438701271,0.46342401,1936.4,1935.4,1.74562164]
[1772438701470,3.76334743,1936.6,1935.6,2.58592363]
[1772438701682,0.46342401,1936.3,1935.2,0.454999]
[1772438701834,0.46342401,1936.1,1935.2,1.74680388]
[1772438702040,2.59544864,1936.0,1935.2,1.29290488]
[1772438702353,0.46342401,1936.0,1935.2,1.29290488]
[1772438702560,2.01,1936.1,1935.2,1.29290488]
[1772438702744,2.01,1936.1,1935.2,1.74680388]
[1772438703073,2.01,1936.1,1935.4,2.58592363]
[1772438703273,2.01,1936.1,1935.5,1.2916559]
[1772438703440,1.7545478,1936.3,1935.5,1.2916559]
[1772438703643,1.29101557,1936.5,1935.6,0.453899]
[1772438703939,2.47142401,1936.6,1935.7,2.58592363]
[1772438703940,1.29092734,1936.6,1935.7,2.58592363]
[1772438704162,1.29092734,1936.6,1935.7,0.453899]
[1772438704363,1.29088899,1936.7,1935.7,0.453899]
[1772438704866,4.25464077,1936.9,1935.9,2.58592363]
[1772438705238,3.29922999,1937.0,1936.1,1.74515461]
[1772438705439,3.2992046,1937.0,1936.1,3.87717924]